[Event "FIDE U16 Olympiad_boards_1-80"]
[Site "Eindhoven, Netherlands"]
[Date "2023.08.14"]
[Round "3.1"]
[White "Gaal, Zsoka"]
[Black "Ansat, Aldiyar"]
[Result "1/2-1/2"]
[TimeControl "2700+10"]
[WhiteElo "2254"]
[BlackElo "2370"]

1. Nf3 {[%clk 00:45:17]} {[%emt 00:00:02]} Nf6 {[%clk 00:45:19]} {[%emt
00:00:02]} 2. g3 {[%clk 00:45:25]} {[%emt 00:00:01]} g6 {[%clk 00:45:27]}
{[%emt 00:00:02]} 3. b3 {[%clk 00:45:34]} {[%emt 00:00:02]} Bg7 {[%clk
00:45:35]} {[%emt 00:00:02]} 4. Bb2 {[%clk 00:45:42]} {[%emt 00:00:01]} d6
{[%clk 00:45:44]} {[%emt 00:00:02]} 5. d4 {[%clk 00:45:47]} {[%emt 00:00:05]}
b5 {[%clk 00:45:47]} {[%emt 00:00:07]} 6. Qd3 {[%clk 00:38:21]} {[%emt
00:07:35]} a6 {[%clk 00:45:55]} {[%emt 00:00:02]} 7. e4 {[%clk 00:38:19]}
{[%emt 00:00:13]} Bb7 {[%clk 00:32:26]} {[%emt 00:13:40]} 8. Nbd2 {[%clk
00:38:21]} {[%emt 00:00:07]} d5 {[%clk 00:32:34]} {[%emt 00:00:01]} 9. e5
{[%clk 00:35:34]} {[%emt 00:02:57]} Ne4 {[%clk 00:32:43]} {[%emt 00:00:02]} 10.
Bg2 {[%clk 00:34:11]} {[%emt 00:01:33]} c5 {[%clk 00:32:43]} {[%emt 00:00:10]}
11. dxc5 {[%clk 00:32:31]} {[%emt 00:01:49]} Nxc5 {[%clk 00:32:51]} {[%emt
00:00:02]} 12. Qe3 {[%clk 00:32:30]} {[%emt 00:00:11]} Ne6 {[%clk 00:32:45]}
{[%emt 00:00:16]} 13. Nd4 {[%clk 00:26:32]} {[%emt 00:06:07]} Nxd4 {[%clk
00:31:47]} {[%emt 00:01:09]} 14. Bxd4 {[%clk 00:26:40]} {[%emt 00:00:02]} Nc6
{[%clk 00:31:53]} {[%emt 00:00:04]} 15. c3 {[%clk 00:25:32]} {[%emt 00:01:19]}
Nxd4 {[%clk 00:20:11]} {[%emt 00:11:52]} 16. cxd4 {[%clk 00:25:40]} {[%emt
00:00:02]} e6 {[%clk 00:20:19]} {[%emt 00:00:01]} 17. a4 {[%clk 00:14:56]}
{[%emt 00:10:55]} b4 {[%clk 00:19:09]} {[%emt 00:01:20]} 18. O-O {[%clk
00:14:03]} {[%emt 00:01:02]} Rc8 {[%clk 00:19:10]} {[%emt 00:00:09]} 19. Nc4
{[%clk 00:12:47]} {[%emt 00:01:26]} O-O {[%clk 00:18:05]} {[%emt 00:01:14]} 20.
Nd6 {[%clk 00:10:24]} {[%emt 00:02:33]} Rc3 {[%clk 00:18:14]} {[%emt 00:00:02]}
21. Qd2 {[%clk 00:10:28]} {[%emt 00:00:06]} Ba8 {[%clk 00:16:20]} {[%emt
00:02:04]} 22. Rfc1 {[%clk 00:09:06]} {[%emt 00:01:31]} Rxb3 {[%clk 00:13:22]}
{[%emt 00:03:09]} 23. Bf1 {[%clk 00:07:45]} {[%emt 00:01:31]} Qa5 {[%clk
00:12:34]} {[%emt 00:00:58]} 24. Rc5 {[%clk 00:07:43]} {[%emt 00:00:12]} Qb6
{[%clk 00:12:09]} {[%emt 00:00:34]} 25. a5 {[%clk 00:07:30]} {[%emt 00:00:24]}
Qb8 {[%clk 00:11:08]} {[%emt 00:01:11]} 26. Rac1 {[%clk 00:06:50]} {[%emt
00:00:49]} Rc3 {[%clk 00:10:19]} {[%emt 00:01:00]} 27. R1xc3 {[%clk 00:06:06]}
bxc3 {[%clk 00:10:28]} {[%emt 00:00:55]} 28. Qxc3 {[%clk 00:06:14]} {[%emt
00:00:02]} f6 {[%clk 00:10:14]} {[%emt 00:00:23]} 29. Bh3 {[%clk 00:06:01]}
{[%emt 00:00:22]} h5 {[%clk 00:06:45]} {[%emt 00:03:40]} 30. Bxe6+ {[%clk
00:05:39]} {[%emt 00:00:32]} Kh7 {[%clk 00:06:55]} 31. Rc8 {[%clk 00:04:38]}
{[%emt 00:01:11]} Rxc8 {[%clk 00:05:03]} {[%emt 00:02:02]} 32. Qxc8 {[%clk
00:04:46]} {[%emt 00:00:02]} Qxc8 {[%clk 00:05:04]} {[%emt 00:00:09]} 33. Bxc8
{[%clk 00:04:53]} {[%emt 00:00:03]} fxe5 {[%clk 00:05:13]} {[%emt 00:00:02]} 34.
Bxa6 {[%clk 00:05:02]} {[%emt 00:00:02]} exd4 {[%clk 00:04:22]} {[%emt
00:01:01]} 35. Bd3 {[%clk 00:02:24]} {[%emt 00:02:48]} Be5 {[%clk 00:02:31]}
{[%emt 00:02:01]} 36. Nc8 {[%clk 00:02:28]} {[%emt 00:00:06]} Kg7 {[%clk
00:01:34]} {[%emt 00:01:08]} 37. a6 {[%clk 00:02:13]} {[%emt 00:00:25]} Bc7
{[%clk 00:01:28]} {[%emt 00:00:15]} 38. Ne7 {[%clk 00:02:14]} {[%emt 00:00:10]}
g5 {[%clk 00:01:29]} {[%emt 00:00:09]} 39. Nf5+ {[%clk 00:02:19]} {[%emt
00:00:04]} Kf6 {[%clk 00:01:38]} {[%emt 00:00:01]} 40. Nxd4 {[%clk 00:02:26]}
{[%emt 00:00:03]} Bb6 {[%clk 00:01:28]} {[%emt 00:00:21]} 41. Nb5 {[%clk
00:01:56]} {[%emt 00:00:40]} g4 {[%clk 00:01:31]} {[%emt 00:00:07]} 42. Kf1
{[%clk 00:01:52]} {[%emt 00:00:14]} Bc6 {[%clk 00:01:10]} {[%emt 00:00:31]} 43.
Nc3 {[%clk 00:01:13]} {[%emt 00:00:49]} d4 {[%clk 00:00:30]} {[%emt 00:00:50]}
44. Ne2 {[%clk 00:01:09]} {[%emt 00:00:13]} Kg5 {[%clk 00:00:16]} {[%emt
00:00:24]} 45. Nf4 {[%clk 00:00:22]} {[%emt 00:00:56]} h4 {[%clk 00:00:26]} 46.
Bc4 {[%clk 00:00:30]} {[%emt 00:00:02]} hxg3 {[%clk 00:00:17]} {[%emt
00:00:19]} 47. fxg3 {[%clk 00:00:24]} {[%emt 00:00:17]} Kf5 {[%clk 00:00:15]}
{[%emt 00:00:12]} 48. Ke2 {[%clk 00:00:15]} {[%emt 00:00:19]} Ke4 {[%clk
00:00:19]} {[%emt 00:00:06]} 49. Bd3+ {[%clk 00:00:22]} {[%emt 00:00:03]} Ke5
{[%clk 00:00:29]} 50. Kd2 {[%clk 00:00:21]} {[%emt 00:00:11]} Kd6 {[%clk
00:00:21]} {[%emt 00:00:18]} 51. Be2 {[%clk 00:00:22]} {[%emt 00:00:09]} Bd7
{[%clk 00:00:22]} {[%emt 00:00:09]} 52. Nd3 {[%clk 00:00:13]} {[%emt 00:00:19]}
Bc8 {[%clk 00:00:14]} {[%emt 00:00:18]} 53. Nf2 {[%clk 00:00:19]} {[%emt
00:00:04]} d3 {[%clk 00:00:14]} {[%emt 00:00:09]} 54. Ne4+ {[%clk 00:00:23]}
{[%emt 00:00:06]} Ke5 {[%clk 00:00:22]} {[%emt 00:00:02]} 55. Bxd3 {[%clk
00:00:31]} {[%emt 00:00:02]} Bxa6 {[%clk 00:00:31]} {[%emt 00:00:02]} 56. Nc3
{[%clk 00:00:13]} {[%emt 00:00:28]} Bxd3 {[%clk 00:00:17]} {[%emt 00:00:23]} 57.
Kxd3 {[%clk 00:00:22]} Bg1 {[%clk 00:00:26]} {[%emt 00:00:02]} 58. Ke2 {[%clk
00:00:13]} {[%emt 00:00:18]} Bxh2 {[%clk 00:00:34]} {[%emt 00:00:02]} 59. Kf2
{[%clk 00:00:22]} {[%emt 00:00:02]} Bxg3+ {[%clk 00:00:42]} {[%emt 00:00:01]}
60. Kxg3 {[%clk 00:00:31]} {[%emt 00:00:01]} Kd4 {[%clk 00:00:51]} 61. Kxg4
{[%clk 00:00:39]} {[%emt 00:00:02]} Kxc3 {[%clk 00:01:01]} 1/2-1/2

[Event "FIDE U16 Olympiad_boards_1-80"]
[Site "Eindhoven, Netherlands"]
[Date "2023.08.14"]
[Round "3.2"]
[White "Sapenov, Daniyal"]
[Black "Palczert, Matyas"]
[Result "1-0"]
[TimeControl "2700+10"]
[WhiteElo "2268"]
[BlackElo "2163"]

1. e4 {[%clk 00:45:16]} {[%emt 00:00:03]} c5 {[%clk 00:45:08]} {[%emt
00:00:12]} 2. Nf3 {[%clk 00:45:23]} {[%emt 00:00:03]} d6 {[%clk 00:45:03]}
{[%emt 00:00:14]} 3. d4 {[%clk 00:45:30]} {[%emt 00:00:04]} cxd4 {[%clk
00:45:10]} {[%emt 00:00:04]} 4. Nxd4 {[%clk 00:45:38]} {[%emt 00:00:02]} Nf6
{[%clk 00:45:17]} {[%emt 00:00:03]} 5. Nc3 {[%clk 00:45:46]} {[%emt 00:00:02]}
a6 {[%clk 00:45:26]} {[%emt 00:00:01]} 6. Be3 {[%clk 00:45:54]} {[%emt
00:00:02]} e5 {[%clk 00:45:19]} {[%emt 00:00:16]} 7. Nb3 {[%clk 00:45:27]}
{[%emt 00:00:36]} Be6 {[%clk 00:43:58]} {[%emt 00:01:31]} 8. f3 {[%clk
00:44:54]} {[%emt 00:00:44]} Be7 {[%clk 00:43:55]} {[%emt 00:00:13]} 9. Qd2
{[%clk 00:44:19]} {[%emt 00:00:45]} h5 {[%clk 00:43:14]} {[%emt 00:00:52]} 10.
O-O-O {[%clk 00:43:10]} {[%emt 00:01:18]} Nbd7 {[%clk 00:43:00]} {[%emt
00:00:24]} 11. Kb1 {[%clk 00:40:53]} {[%emt 00:02:27]} Rc8 {[%clk 00:42:29]}
{[%emt 00:00:41]} 12. Nd5 {[%clk 00:35:03]} {[%emt 00:06:00]} Nxd5 {[%clk
00:42:04]} {[%emt 00:00:35]} 13. exd5 {[%clk 00:35:11]} {[%emt 00:00:02]} Bf5
{[%clk 00:42:11]} {[%emt 00:00:03]} 14. Bd3 {[%clk 00:33:10]} {[%emt 00:02:11]}
Bxd3 {[%clk 00:42:17]} {[%emt 00:00:03]} 15. Qxd3 {[%clk 00:33:19]} {[%emt
00:00:02]} Bg5 {[%clk 00:39:11]} {[%emt 00:03:16]} 16. Bf2 {[%clk 00:32:14]}
{[%emt 00:01:14]} O-O {[%clk 00:37:00]} {[%emt 00:02:22]} 17. h4 {[%clk
00:30:37]} {[%emt 00:01:47]} Bh6 {[%clk 00:35:59]} {[%emt 00:01:11]} 18. g4
{[%clk 00:25:41]} {[%emt 00:05:06]} Bf4 {[%clk 00:35:10]} {[%emt 00:01:00]} 19.
Nd2 {[%clk 00:24:08]} {[%emt 00:01:42]} Bxd2 {[%clk 00:33:01]} {[%emt
00:02:19]} 20. Qxd2 {[%clk 00:21:24]} {[%emt 00:02:55]} Nf6 {[%clk 00:30:27]}
{[%emt 00:02:45]} 21. Rdg1 {[%clk 00:14:55]} {[%emt 00:06:39]} hxg4 {[%clk
00:22:21]} {[%emt 00:08:15]} 22. h5 {[%clk 00:14:50]} {[%emt 00:00:16]} Qc7
{[%clk 00:18:08]} {[%emt 00:04:22]} 23. h6 {[%clk 00:13:42]} {[%emt 00:01:18]}
g6 {[%clk 00:18:12]} {[%emt 00:00:06]} 24. h7+ {[%clk 00:11:34]} {[%emt
00:02:17]} Kh8 {[%clk 00:17:31]} {[%emt 00:00:50]} 25. Bh4 {[%clk 00:11:34]}
{[%emt 00:00:11]} Nd7 {[%clk 00:15:59]} {[%emt 00:01:42]} 26. fxg4 {[%clk
00:11:06]} {[%emt 00:00:38]} f6 {[%clk 00:14:23]} {[%emt 00:01:47]} 27. Bf2
{[%clk 00:07:47]} {[%emt 00:03:29]} Nc5 {[%clk 00:13:43]} {[%emt 00:00:50]} 28.
Bxc5 {[%clk 00:06:47]} {[%emt 00:01:11]} Qxc5 {[%clk 00:13:42]} {[%emt
00:00:11]} 29. Qd3 {[%clk 00:06:55]} {[%emt 00:00:02]} Kg7 {[%clk 00:13:01]}
{[%emt 00:00:51]} 30. c3 {[%clk 00:05:31]} {[%emt 00:01:34]} Rh8 {[%clk
00:11:53]} {[%emt 00:01:17]} 31. Ka1 {[%clk 00:04:29]} {[%emt 00:01:13]} Qc4
{[%clk 00:10:45]} {[%emt 00:01:18]} 32. Qd2 {[%clk 00:03:48]} {[%emt 00:00:51]}
Qf4 {[%clk 00:10:31]} {[%emt 00:00:25]} 33. Qe2 {[%clk 00:03:31]} {[%emt
00:00:28]} Rxh7 {[%clk 00:08:33]} {[%emt 00:02:08]} 34. Rxh7+ {[%clk 00:03:40]}
{[%emt 00:00:01]} Kxh7 {[%clk 00:08:42]} {[%emt 00:00:01]} 35. Rf1 {[%clk
00:03:47]} {[%emt 00:00:02]} Qh6 {[%clk 00:01:37]} {[%emt 00:07:15]} 36. Qg2
{[%clk 00:03:50]} {[%emt 00:00:07]} Qg7 {[%clk 00:01:35]} {[%emt 00:00:11]} 37.
Qf2 {[%clk 00:03:17]} {[%emt 00:00:43]} Rf8 {[%clk 00:01:15]} {[%emt 00:00:29]}
38. c4 {[%clk 00:03:06]} {[%emt 00:00:21]} f5 {[%clk 00:01:12]} {[%emt
00:00:13]} 39. Qh4+ {[%clk 00:01:45]} {[%emt 00:01:31]} Kg8 {[%clk 00:01:08]}
{[%emt 00:00:15]} 40. gxf5 {[%clk 00:01:43]} {[%emt 00:00:12]} Rxf5 {[%clk
00:01:14]} {[%emt 00:00:03]} 41. Rg1 {[%clk 00:01:41]} {[%emt 00:00:12]} Qf6
{[%clk 00:01:06]} {[%emt 00:00:18]} 42. Qh3 {[%clk 00:01:38]} {[%emt 00:00:12]}
b6 {[%clk 00:00:34]} {[%emt 00:00:43]} 43. a3 {[%clk 00:01:09]} {[%emt
00:00:39]} e4 {[%clk 00:00:27]} {[%emt 00:00:17]} 44. Ka2 {[%clk 00:01:04]}
{[%emt 00:00:15]} Rf2 {[%clk 00:00:13]} {[%emt 00:00:24]} 45. Qc8+ {[%clk
00:01:00]} {[%emt 00:00:14]} Kg7 {[%clk 00:00:14]} {[%emt 00:00:08]} 46. Qc7+
{[%clk 00:00:53]} {[%emt 00:00:17]} Kh6 {[%clk 00:00:11]} {[%emt 00:00:14]} 47.
Rh1+ {[%clk 00:00:53]} {[%emt 00:00:09]} Kg5 {[%clk 00:00:19]} {[%emt
00:00:02]} 48. Qxb6 {[%clk 00:01:01]} {[%emt 00:00:02]} Re2 {[%clk 00:00:11]}
{[%emt 00:00:18]} 49. Qg1+ {[%clk 00:00:58]} {[%emt 00:00:14]} Kf4 {[%clk
00:00:11]} {[%emt 00:00:10]} 50. Qf1+ {[%clk 00:01:06]} {[%emt 00:00:01]} Ke5
{[%clk 00:00:20]} {[%emt 00:00:01]} 51. Qxe2 {[%clk 00:01:14]} {[%emt
00:00:03]} Qf3 {[%clk 00:00:27]} {[%emt 00:00:02]} 52. Qxf3 {[%clk 00:01:12]}
{[%emt 00:00:12]} exf3 {[%clk 00:00:36]} {[%emt 00:00:01]} 53. Rf1 {[%clk
00:01:22]} Kf4 {[%clk 00:00:42]} {[%emt 00:00:04]} 54. c5 {[%clk 00:01:30]}
{[%emt 00:00:02]} 1-0

[Event "FIDE U16 Olympiad_boards_1-80"]
[Site "Eindhoven, Netherlands"]
[Date "2023.08.14"]
[Round "3.3"]
[White "Kolimar, Kristof Pal"]
[Black "Mamedov, Edgar"]
[Result "1-0"]
[TimeControl "2700+10"]
[WhiteElo "2182"]
[BlackElo "2091"]

1. d4 {[%clk 00:45:18]} {[%emt 00:00:01]} d5 {[%clk 00:45:15]} {[%emt
00:00:06]} 2. Nf3 {[%clk 00:45:24]} {[%emt 00:00:03]} Nf6 {[%clk 00:45:13]}
{[%emt 00:00:12]} 3. c4 {[%clk 00:45:33]} {[%emt 00:00:02]} c6 {[%clk
00:45:18]} {[%emt 00:00:05]} 4. g3 {[%clk 00:45:41]} Bf5 {[%clk 00:45:16]}
{[%emt 00:00:12]} 5. Nc3 {[%clk 00:45:49]} {[%emt 00:00:01]} e6 {[%clk
00:45:19]} {[%emt 00:00:08]} 6. Nh4 {[%clk 00:45:58]} {[%emt 00:00:01]} dxc4
{[%clk 00:45:11]} {[%emt 00:00:18]} 7. Nxf5 {[%clk 00:46:05]} {[%emt 00:00:03]}
exf5 {[%clk 00:45:19]} {[%emt 00:00:02]} 8. e3 {[%clk 00:46:13]} {[%emt
00:00:02]} Nbd7 {[%clk 00:45:03]} {[%emt 00:00:27]} 9. Bxc4 {[%clk 00:46:21]}
{[%emt 00:00:02]} Nb6 {[%clk 00:45:11]} {[%emt 00:00:02]} 10. Bb3 {[%clk
00:46:29]} {[%emt 00:00:02]} Qd7 {[%clk 00:44:57]} {[%emt 00:00:24]} 11. Bd2
{[%clk 00:46:33]} {[%emt 00:00:05]} Be7 {[%clk 00:39:00]} {[%emt 00:06:07]} 12.
f3 {[%clk 00:44:55]} {[%emt 00:01:49]} O-O {[%clk 00:37:08]} {[%emt 00:02:02]}
13. O-O {[%clk 00:40:56]} {[%emt 00:04:08]} Rad8 {[%clk 00:34:58]} {[%emt
00:02:20]} 14. Ne2 {[%clk 00:29:15]} {[%emt 00:11:51]} c5 {[%clk 00:33:41]}
{[%emt 00:01:28]} 15. Rc1 {[%clk 00:26:49]} {[%emt 00:02:36]} cxd4 {[%clk
00:32:36]} {[%emt 00:01:15]} 16. Nxd4 {[%clk 00:26:47]} {[%emt 00:00:12]} Nfd5
{[%clk 00:32:19]} {[%emt 00:00:27]} 17. Qc2 {[%clk 00:21:30]} {[%emt 00:05:28]}
g6 {[%clk 00:27:44]} {[%emt 00:04:44]} 18. Rfd1 {[%clk 00:19:19]} {[%emt
00:02:21]} Bf6 {[%clk 00:23:41]} {[%emt 00:04:14]} 19. Ne2 {[%clk 00:16:14]}
{[%emt 00:03:14]} Qe7 {[%clk 00:21:04]} {[%emt 00:02:46]} 20. e4 {[%clk
00:14:45]} {[%emt 00:01:40]} fxe4 {[%clk 00:20:29]} {[%emt 00:00:45]} 21. fxe4
{[%clk 00:13:35]} {[%emt 00:01:20]} Rfe8 {[%clk 00:15:20]} {[%emt 00:05:20]} 22.
exd5 {[%clk 00:12:23]} {[%emt 00:01:21]} Qxe2 {[%clk 00:13:41]} {[%emt
00:01:49]} 23. Bf4 {[%clk 00:11:54]} {[%emt 00:00:40]} Qf3 {[%clk 00:10:58]}
{[%emt 00:02:52]} 24. Qf2 {[%clk 00:07:15]} {[%emt 00:04:48]} Qxf2+ {[%clk
00:09:30]} {[%emt 00:01:38]} 25. Kxf2 {[%clk 00:07:24]} {[%emt 00:00:01]} Bxb2
{[%clk 00:09:23]} {[%emt 00:00:17]} 26. Rc7 {[%clk 00:07:17]} {[%emt 00:00:16]}
Be5 {[%clk 00:07:32]} {[%emt 00:02:01]} 27. d6 {[%clk 00:04:44]} {[%emt
00:02:44]} Bxf4 {[%clk 00:05:40]} {[%emt 00:02:02]} 28. Bxf7+ {[%clk 00:04:27]}
{[%emt 00:00:27]} Kf8 {[%clk 00:05:38]} {[%emt 00:00:12]} 29. gxf4 {[%clk
00:03:59]} {[%emt 00:00:38]} Re4 {[%clk 00:05:25]} {[%emt 00:00:23]} 30. Kf3
{[%clk 00:04:00]} {[%emt 00:00:09]} Ra4 {[%clk 00:03:15]} {[%emt 00:02:20]} 31.
Bb3 {[%clk 00:03:38]} {[%emt 00:00:32]} Ra3 {[%clk 00:02:39]} {[%emt 00:00:46]}
32. Rf7+ {[%clk 00:03:45]} {[%emt 00:00:03]} Kg8 {[%clk 00:02:44]} {[%emt
00:00:05]} 33. Rxb7+ {[%clk 00:03:38]} {[%emt 00:00:17]} Kh8 {[%clk 00:02:45]}
{[%emt 00:00:09]} 34. Kg4 {[%clk 00:02:29]} {[%emt 00:01:19]} Nd7 {[%clk
00:02:16]} {[%emt 00:00:38]} 35. Rc1 {[%clk 00:02:03]} {[%emt 00:00:36]} Ra5
{[%clk 00:00:36]} {[%emt 00:01:50]} 36. Rcc7 {[%clk 00:01:38]} {[%emt
00:00:35]} Nf6+ {[%clk 00:00:44]} {[%emt 00:00:02]} 37. Kf3 {[%clk 00:01:23]}
{[%emt 00:00:25]} Rh5 {[%clk 00:00:24]} {[%emt 00:00:30]} 38. Rf7 {[%clk
00:01:10]} {[%emt 00:00:22]} Ng8 {[%clk 00:00:15]} {[%emt 00:00:19]} 39. d7
{[%clk 00:00:51]} {[%emt 00:00:29]} Rxh2 {[%clk 00:00:14]} {[%emt 00:00:12]} 40.
Rc7 {[%clk 00:00:42]} {[%emt 00:00:20]} Rd2 {[%clk 00:00:14]} {[%emt 00:00:10]}
41. Be6 {[%clk 00:00:25]} {[%emt 00:00:26]} Rb2 {[%clk 00:00:22]} {[%emt
00:00:02]} 42. Rxa7 {[%clk 00:00:16]} {[%emt 00:00:19]} Rb6 {[%clk 00:00:20]}
{[%emt 00:00:12]} 43. Bh3 {[%clk 00:00:14]} {[%emt 00:00:12]} Rd6 {[%clk
00:00:13]} {[%emt 00:00:17]} 44. Rc7 {[%clk 00:00:14]} {[%emt 00:00:10]} Ra6
{[%clk 00:00:13]} {[%emt 00:00:10]} 45. Rc8 {[%clk 00:00:21]} {[%emt 00:00:04]}
Ra8 {[%clk 00:00:16]} {[%emt 00:00:06]} 46. a4 {[%clk 00:00:14]} {[%emt
00:00:17]} Rb8 {[%clk 00:00:12]} {[%emt 00:00:15]} 47. a5 {[%clk 00:00:15]}
{[%emt 00:00:08]} Rb3+ {[%clk 00:00:20]} {[%emt 00:00:02]} 48. Ke2 {[%clk
00:00:17]} {[%emt 00:00:08]} Rb8 {[%clk 00:00:22]} {[%emt 00:00:08]} 49. a6
{[%clk 00:00:20]} {[%emt 00:00:07]} Ra8 {[%clk 00:00:12]} {[%emt 00:00:20]} 50.
a7 {[%clk 00:00:20]} {[%emt 00:00:11]} h6 {[%clk 00:00:14]} {[%emt 00:00:08]}
51. Rxa8 {[%clk 00:00:26]} {[%emt 00:00:04]} Rxa8 {[%clk 00:00:22]} 52. Be6
{[%clk 00:00:26]} {[%emt 00:00:10]} h5 {[%emt 00:00:17]} 53. Bd5 {[%clk
00:00:34]} {[%emt 00:00:01]} 1-0

[Event "FIDE U16 Olympiad_boards_1-80"]
[Site "Eindhoven, Netherlands"]
[Date "2023.08.14"]
[Round "3.4"]
[White "Nurmanova, Alua"]
[Black "Giang, Tran Nam"]
[Result "1/2-1/2"]
[TimeControl "2700+10"]
[WhiteElo "2252"]
[BlackElo "2098"]

1. e4 {[%clk 00:45:10]} {[%emt 00:00:03]} c5 {[%clk 00:45:10]} {[%emt
00:00:02]} 2. Nf3 {[%clk 00:45:10]} {[%emt 00:00:04]} e6 {[%clk 00:45:10]}
{[%emt 00:00:07]} 3. d4 {[%clk 00:45:10]} {[%emt 00:00:07]} cxd4 {[%clk
00:45:10]} {[%emt 00:00:07]} 4. Nxd4 {[%clk 00:45:10]} {[%emt 00:00:05]} a6
{[%clk 00:45:10]} {[%emt 00:00:02]} 5. Bd3 {[%clk 00:42:50]} {[%emt 00:02:31]}
Nc6 {[%clk 00:44:51]} {[%emt 00:00:29]} 6. Nxc6 {[%clk 00:42:38]} {[%emt
00:00:22]} dxc6 {[%clk 00:44:51]} {[%emt 00:00:02]} 7. O-O {[%clk 00:42:15]}
{[%emt 00:00:34]} e5 {[%clk 00:44:41]} {[%emt 00:00:20]} 8. Be3 {[%clk
00:42:05]} {[%emt 00:00:20]} Nf6 {[%clk 00:43:56]} {[%emt 00:00:55]} 9. h3
{[%clk 00:41:56]} {[%emt 00:00:19]} Be6 {[%clk 00:42:31]} {[%emt 00:01:34]} 10.
a4 {[%clk 00:41:42]} {[%emt 00:00:25]} b5 {[%clk 00:40:42]} {[%emt 00:02:00]}
11. Nd2 {[%clk 00:40:55]} {[%emt 00:00:57]} Be7 {[%clk 00:38:29]} {[%emt
00:02:22]} 12. Qe2 {[%clk 00:37:19]} {[%emt 00:03:46]} O-O {[%clk 00:37:05]}
{[%emt 00:01:34]} 13. c4 {[%clk 00:35:14]} {[%emt 00:02:16]} b4 {[%clk
00:33:54]} {[%emt 00:03:21]} 14. c5 {[%clk 00:33:37]} {[%emt 00:01:47]} a5
{[%clk 00:32:24]} {[%emt 00:01:40]} 15. Rac1 {[%clk 00:31:31]} {[%emt
00:02:15]} Qc7 {[%clk 00:30:45]} {[%emt 00:01:48]} 16. Bc4 {[%clk 00:29:33]}
{[%emt 00:02:10]} Bxc4 {[%clk 00:28:21]} {[%emt 00:02:33]} 17. Qxc4 {[%clk
00:29:33]} {[%emt 00:00:06]} Rfd8 {[%clk 00:25:58]} {[%emt 00:02:32]} 18. Nb3
{[%clk 00:28:15]} {[%emt 00:01:28]} Qd7 {[%clk 00:23:41]} {[%emt 00:02:27]} 19.
Rfd1 {[%clk 00:25:35]} {[%emt 00:02:50]} Qxd1+ {[%clk 00:23:41]} {[%emt
00:00:08]} 20. Rxd1 {[%clk 00:25:35]} Rxd1+ {[%clk 00:23:41]} {[%emt 00:00:02]}
21. Kh2 {[%clk 00:25:35]} {[%emt 00:00:01]} Rd7 {[%clk 00:23:35]} {[%emt
00:00:15]} 22. Qc2 {[%clk 00:23:27]} {[%emt 00:02:18]} Bd8 {[%clk 00:19:35]}
{[%emt 00:04:10]} 23. Nd2 {[%clk 00:22:23]} {[%emt 00:01:14]} Bc7 {[%clk
00:18:41]} {[%emt 00:01:03]} 24. Nc4 {[%clk 00:22:23]} {[%emt 00:00:06]} Rad8
{[%clk 00:16:31]} {[%emt 00:02:21]} 25. Nd6 {[%clk 00:20:19]} {[%emt 00:02:13]}
Bxd6 {[%clk 00:15:29]} {[%emt 00:01:12]} 26. cxd6 {[%clk 00:20:19]} {[%emt
00:00:01]} Rxd6 {[%clk 00:15:29]} {[%emt 00:00:06]} 27. Qc5 {[%clk 00:19:54]}
{[%emt 00:00:35]} Nxe4 {[%clk 00:13:41]} {[%emt 00:01:59]} 28. Qxe5 {[%clk
00:17:11]} {[%emt 00:02:53]} Nd2 {[%clk 00:12:32]} {[%emt 00:01:18]} 29. Bxd2
{[%clk 00:16:52]} {[%emt 00:00:29]} Rxd2 {[%clk 00:12:32]} {[%emt 00:00:03]} 30.
Qxa5 {[%clk 00:16:52]} {[%emt 00:00:04]} c5 {[%clk 00:10:16]} {[%emt 00:02:26]}
31. Qb6 {[%clk 00:15:02]} {[%emt 00:01:59]} Rc8 {[%clk 00:09:30]} {[%emt
00:00:57]} 32. Qb7 {[%clk 00:13:14]} {[%emt 00:01:58]} Rf8 {[%clk 00:09:24]}
{[%emt 00:00:16]} 33. b3 {[%clk 00:12:43]} {[%emt 00:00:41]} Rd3 {[%clk
00:08:03]} {[%emt 00:01:31]} 34. Qc6 {[%clk 00:11:45]} {[%emt 00:01:09]} Rxb3
{[%clk 00:07:51]} {[%emt 00:00:21]} 35. Qxc5 {[%clk 00:11:45]} {[%emt
00:00:03]} Rb1 {[%clk 00:07:23]} {[%emt 00:00:38]} 36. Qc4 {[%clk 00:07:47]}
{[%emt 00:04:08]} h6 {[%clk 00:05:27]} {[%emt 00:02:06]} 37. Qa2 {[%clk
00:06:33]} {[%emt 00:01:24]} Rd1 {[%clk 00:04:43]} {[%emt 00:00:54]} 1/2-1/2